[Event "Early-Titled-Tuesday-Blitz-July-09-2024"]
[Site "Chess.com"]
[Date "2024.07.09"]
[Round "9"]
[White "osielchesslover2011"]
[Black "glucolisis04"]
[Result "0-1"]
[WhiteElo "2184"]
[BlackElo "2296"]
[TimeControl "180+1"]
[EndTime "9:46:18 PDT"]
[Termination "glucolisis04 won by resignation"]

1. e4 {[%clk 0:03:00.9]} 1... c5 {[%clk 0:03:00.4]} 2. Nf3 {[%clk 0:02:57.7]}
2... Nc6 {[%clk 0:03:00.4]} 3. Nc3 {[%clk 0:02:56.9]} 3... e5 {[%clk 0:02:59.3]}
4. Bc4 {[%clk 0:02:55.4]} 4... Be7 {[%clk 0:02:59.2]} 5. d3 {[%clk 0:02:50.4]}
5... d6 {[%clk 0:02:59.3]} 6. Nd5 {[%clk 0:02:49.7]} 6... Nf6 {[%clk 0:02:53.9]}
7. h3 {[%clk 0:02:48]} 7... Nxd5 {[%clk 0:02:46.1]} 8. Bxd5 {[%clk 0:02:41]}
8... O-O {[%clk 0:02:44.3]} 9. g4 {[%clk 0:02:37.3]} 9... Kh8 {[%clk 0:02:36.2]}
10. c3 {[%clk 0:02:27.8]} 10... Be6 {[%clk 0:02:01.9]} 11. Qb3 {[%clk 0:02:06]}
11... Na5 {[%clk 0:01:52.1]} 12. Qc2 {[%clk 0:01:56.2]} 12... Bxd5 {[%clk
0:01:46.9]} 13. exd5 {[%clk 0:01:52.5]} 13... b5 {[%clk 0:01:27.1]} 14. c4
{[%clk 0:01:30.9]} 14... b4 {[%clk 0:01:18.1]} 15. a3 {[%clk 0:00:55.2]} 15...
f5 {[%clk 0:01:13.2]} 16. g5 {[%clk 0:00:46.1]} 16... e4 {[%clk 0:01:01.8]} 17.
Nh2 {[%clk 0:00:11.1]} 17... Bxg5 {[%clk 0:00:59.2]} 18. Bxg5 {[%clk 0:00:08]}
18... Qxg5 {[%clk 0:01:00.1]} 19. axb4 {[%clk 0:00:08]} 19... Qg2 {[%clk
0:00:20]} 20. O-O-O {[%clk 0:00:07.2]} 20... cxb4 {[%clk 0:00:20.4]} 21. b3
{[%clk 0:00:06.1]} 21... exd3 {[%clk 0:00:17.2]} 22. Qxd3 {[%clk 0:00:05.4]}
22... Qxf2 {[%clk 0:00:17.1]} 23. Rd2 {[%clk 0:00:04]} 23... Qc5 {[%clk
0:00:15.3]} 24. Nf3 {[%clk 0:00:03.3]} 24... Rae8 {[%clk 0:00:14.3]} 25. Nd4
{[%clk 0:00:03.4]} 25... f4 {[%clk 0:00:13.8]} 26. Ne6 {[%clk 0:00:03.6]} 26...
Qe3 {[%clk 0:00:08.7]} 27. Nxf8 {[%clk 0:00:03.3]} 27... Nxb3+ {[%clk
0:00:05.6]} 28. Kc2 {[%clk 0:00:02.9]} 28... Qxd2+ {[%clk 0:00:04]} 29. Qxd2
{[%clk 0:00:02.4]} 29... Nxd2 {[%clk 0:00:04.3]} 30. Kxd2 {[%clk 0:00:03]} 30...
Rxf8 {[%clk 0:00:04.2]} 31. Rf1 {[%clk 0:00:03.7]} 31... f3 {[%clk 0:00:03.8]}
32. Ke3 {[%clk 0:00:03.6]} 32... f2 {[%clk 0:00:04]} 33. Kd4 {[%clk 0:00:03.9]}
33... b3 {[%clk 0:00:03.7]} 34. Kc3 {[%clk 0:00:04.4]} 34... Rf3+ {[%clk
0:00:03.2]} 35. Kb2 {[%clk 0:00:04.3]} 35... Kg8 {[%clk 0:00:03.7]} 36. h4
{[%clk 0:00:04.5]} 36... Kf7 {[%clk 0:00:03.9]} 37. h5 {[%clk 0:00:03.7]} 37...
Ke7 {[%clk 0:00:03.1]} 38. Kb1 {[%clk 0:00:01.9]} 38... Kd7 {[%clk 0:00:03.2]}
39. Kb2 {[%clk 0:00:02.4]} 39... Kc7 {[%clk 0:00:03.7]} 40. Ka3 {[%clk
0:00:02.4]} 40... Kb6 {[%clk 0:00:04.2]} 41. Kb2 {[%clk 0:00:02.5]} 41... Kc5
{[%clk 0:00:04.4]} 42. h6 {[%clk 0:00:01.4]} 42... gxh6 {[%clk 0:00:04.1]} 43.
Rh1 {[%clk 0:00:01.5]} 43... Kxc4 {[%clk 0:00:04.2]} 44. Rh4+ {[%clk 0:00:02.1]}
44... Kc5 {[%clk 0:00:04]} 45. Rh5 {[%clk 0:00:02.8]} 45... f1=Q {[%clk
0:00:04.1]} 0-1

[Event "Early-Titled-Tuesday-Blitz-July-09-2024"]
[Site "Chess.com"]
[Date "2024.07.09"]
[Round "9"]
[White "Dmitry_Ponomarev"]
[Black "Barbix1"]
[Result "1-0"]
[WhiteElo "2517"]
[BlackElo "2370"]
[TimeControl "180+1"]
[EndTime "9:46:23 PDT"]
[Termination "Dmitry_Ponomarev won on time"]

1. e4 {[%clk 0:02:56.7]} 1... c5 {[%clk 0:02:59.7]} 2. Nf3 {[%clk 0:02:55.8]}
2... e6 {[%clk 0:02:59.3]} 3. d4 {[%clk 0:02:55.8]} 3... cxd4 {[%clk 0:02:59.3]}
4. Nxd4 {[%clk 0:02:56.7]} 4... Nf6 {[%clk 0:02:59.7]} 5. Nc3 {[%clk 0:02:56.1]}
5... Nc6 {[%clk 0:03:00]} 6. Ndb5 {[%clk 0:02:55.7]} 6... d6 {[%clk 0:02:56.6]}
7. Be3 {[%clk 0:02:53.5]} 7... a6 {[%clk 0:02:39.8]} 8. Nd4 {[%clk 0:02:44.6]}
8... Be7 {[%clk 0:02:24.3]} 9. Be2 {[%clk 0:02:40.7]} 9... O-O {[%clk
0:02:22.4]} 10. O-O {[%clk 0:02:40.7]} 10... Bd7 {[%clk 0:01:50.5]} 11. f3
{[%clk 0:02:38.3]} 11... h6 {[%clk 0:01:41]} 12. Qd2 {[%clk 0:02:23.2]} 12...
Rc8 {[%clk 0:01:40.7]} 13. Rac1 {[%clk 0:02:19.4]} 13... Ne5 {[%clk 0:01:23.5]}
14. Rfd1 {[%clk 0:02:13.4]} 14... Nc4 {[%clk 0:01:20.1]} 15. Bxc4 {[%clk
0:02:10.9]} 15... Rxc4 {[%clk 0:01:21]} 16. Nce2 {[%clk 0:02:08.2]} 16... b5
{[%clk 0:01:09.9]} 17. b3 {[%clk 0:01:57.9]} 17... Rc8 {[%clk 0:00:59.8]} 18. c4
{[%clk 0:01:53.4]} 18... bxc4 {[%clk 0:00:56.2]} 19. bxc4 {[%clk 0:01:54.3]}
19... Ba4 {[%clk 0:00:54.3]} 20. Nb3 {[%clk 0:01:52.3]} 20... Nd7 {[%clk
0:00:47.4]} 21. Qb4 {[%clk 0:01:35]} 21... Bc6 {[%clk 0:00:21]} 22. Ned4 {[%clk
0:01:30.7]} 22... Ne5 {[%clk 0:00:18.3]} 23. Nxc6 {[%clk 0:01:22.5]} 23... Rxc6
{[%clk 0:00:19.2]} 24. Na5 {[%clk 0:01:20.6]} 24... Rc8 {[%clk 0:00:14.9]} 25.
c5 {[%clk 0:01:18.7]} 25... d5 {[%clk 0:00:07]} 26. exd5 {[%clk 0:00:57.7]}
26... exd5 {[%clk 0:00:07.9]} 27. Bd4 {[%clk 0:00:56.5]} 27... Qc7 {[%clk
0:00:07.7]} 28. Qb6 {[%clk 0:00:51]} 28... Bf6 {[%clk 0:00:04.5]} 29. Qxc7
{[%clk 0:00:48.1]} 29... Rxc7 {[%clk 0:00:05.4]} 30. Bxe5 {[%clk 0:00:46.7]}
30... Bxe5 {[%clk 0:00:05.3]} 31. Rxd5 {[%clk 0:00:47.3]} 31... Bf6 {[%clk
0:00:05.3]} 32. c6 {[%clk 0:00:44.5]} 32... Rfc8 {[%clk 0:00:04.9]} 33. Rb1
{[%clk 0:00:41.6]} 33... Bc3 {[%clk 0:00:04.6]} 34. Rb6 {[%clk 0:00:16.4]} 34...
Bxa5 {[%clk 0:00:04.7]} 35. Rxa5 {[%clk 0:00:16.2]} 35... Rxc6 {[%clk
0:00:05.1]} 36. Raxa6 {[%clk 0:00:13.6]} 36... Rc1+ {[%clk 0:00:03.6]} 37. Kf2
{[%clk 0:00:13.9]} 37... R8c2+ {[%clk 0:00:04.2]} 38. Kg3 {[%clk 0:00:14.3]}
38... Ra1 {[%clk 0:00:04.7]} 39. Rb8+ {[%clk 0:00:12.7]} 39... Kh7 {[%clk
0:00:05.2]} 40. Rba8 {[%clk 0:00:10.2]} 40... h5 {[%clk 0:00:03.1]} 41. Kh3
{[%clk 0:00:08.8]} 41... Rb1 {[%clk 0:00:02.9]} 42. Ra5 {[%clk 0:00:06.4]} 42...
Kh6 {[%clk 0:00:01.7]} 43. Rh8+ {[%clk 0:00:05.9]} 43... Kg6 {[%clk 0:00:01.8]}
44. Rhxh5 {[%clk 0:00:06.8]} 44... Rbb2 {[%clk 0:00:01.8]} 45. Rhg5+ {[%clk
0:00:07]} 45... Kh6 {[%clk 0:00:02]} 46. a4 {[%clk 0:00:07.2]} 46... Rb3 {[%clk
0:00:01.6]} 47. Rg4 {[%clk 0:00:07.6]} 47... f5 {[%clk 0:00:01.7]} 48. Rxf5
{[%clk 0:00:07.1]} 48... Ra3 {[%clk 0:00:01.8]} 49. Rfg5 {[%clk 0:00:06.3]}
49... Raa2 {[%clk 0:00:01]} 50. Rg6+ {[%clk 0:00:06.4]} 50... Kh7 {[%clk
0:00:01.1]} 51. Rxg7+ {[%clk 0:00:06.9]} 51... Kh8 {[%clk 0:00:01.8]} 52. R7g5
{[%clk 0:00:07.2]} 1-0

[Event "Early-Titled-Tuesday-Blitz-July-09-2024"]
[Site "Chess.com"]
[Date "2024.07.09"]
[Round "9"]
[White "DenLaz"]
[Black "MagnusCarlsen"]
[Result "1/2-1/2"]
[WhiteElo "3150"]
[BlackElo "3189"]
[TimeControl "180+1"]
[EndTime "9:46:24 PDT"]
[Termination "Game drawn by repetition"]

1. d4 {[%clk 0:03:00.9]} 1... Nf6 {[%clk 0:02:57.7]} 2. c4 {[%clk 0:03:01.4]}
2... e6 {[%clk 0:02:55.3]} 3. Nf3 {[%clk 0:03:01.8]} 3... d5 {[%clk 0:02:55.3]}
4. g3 {[%clk 0:03:02.1]} 4... Be7 {[%clk 0:02:52.2]} 5. Bg2 {[%clk 0:03:02.2]}
5... O-O {[%clk 0:02:53]} 6. O-O {[%clk 0:03:02.2]} 6... c5 {[%clk 0:02:52.6]}
7. cxd5 {[%clk 0:02:59.8]} 7... exd5 {[%clk 0:02:53.5]} 8. Nc3 {[%clk
0:02:55.9]} 8... h6 {[%clk 0:02:48.4]} 9. dxc5 {[%clk 0:02:46.7]} 9... Bxc5
{[%clk 0:02:48.2]} 10. a3 {[%clk 0:02:47.2]} 10... a5 {[%clk 0:02:43.5]} 11. Bf4
{[%clk 0:02:45.3]} 11... Nc6 {[%clk 0:02:41.3]} 12. Rc1 {[%clk 0:02:45.6]} 12...
Re8 {[%clk 0:01:50.1]} 13. Nb5 {[%clk 0:02:30.1]} 13... Bb6 {[%clk 0:01:50.3]}
14. Nd6 {[%clk 0:01:52.4]} 14... Re7 {[%clk 0:01:50.2]} 15. Nxc8 {[%clk
0:01:43.9]} 15... Qxc8 {[%clk 0:01:49.6]} 16. Ne5 {[%clk 0:01:37.5]} 16... Qe6
{[%clk 0:01:47]} 17. Nxc6 {[%clk 0:01:32.2]} 17... bxc6 {[%clk 0:01:47.9]} 18.
Qb3 {[%clk 0:01:32.4]} 18... Ba7 {[%clk 0:01:19.2]} 19. Qa4 {[%clk 0:01:15.5]}
19... Qxe2 {[%clk 0:01:14.1]} 20. Qxc6 {[%clk 0:01:13.6]} 20... Rd8 {[%clk
0:01:02.4]} 21. Rc2 {[%clk 0:01:09.1]} 21... Qd3 {[%clk 0:00:52.1]} 22. Rd2
{[%clk 0:01:01.2]} 22... Qb3 {[%clk 0:00:48]} 23. Qc2 {[%clk 0:00:43.6]} 23...
Qxc2 {[%clk 0:00:45.2]} 24. Rxc2 {[%clk 0:00:44.5]} 24... d4 {[%clk 0:00:43.2]}
25. Bf3 {[%clk 0:00:28.8]} 25... d3 {[%clk 0:00:38.5]} 26. Rc7 {[%clk
0:00:28.7]} 26... Red7 {[%clk 0:00:19.6]} 27. Rxd7 {[%clk 0:00:28.9]} 27... Rxd7
{[%clk 0:00:19.8]} 28. Rd1 {[%clk 0:00:29.5]} 28... Bd4 {[%clk 0:00:18.2]} 29.
b4 {[%clk 0:00:27.4]} 29... axb4 {[%clk 0:00:18.3]} 30. axb4 {[%clk 0:00:28.3]}
30... g5 {[%clk 0:00:18.8]} 31. Be3 {[%clk 0:00:17.8]} 31... Bxe3 {[%clk
0:00:16.5]} 32. fxe3 {[%clk 0:00:18.7]} 32... Rd6 {[%clk 0:00:13.9]} 33. Kf2
{[%clk 0:00:07.4]} 33... Nd7 {[%clk 0:00:08.1]} 34. Be4 {[%clk 0:00:04.4]} 34...
Ne5 {[%clk 0:00:08.2]} 35. h3 {[%clk 0:00:02.4]} 35... Kg7 {[%clk 0:00:08.2]}
36. Rb1 {[%clk 0:00:02.8]} 36... Kf6 {[%clk 0:00:06.6]} 37. b5 {[%clk
0:00:03.3]} 37... Rb6 {[%clk 0:00:07.1]} 38. Ke1 {[%clk 0:00:03.6]} 38... Ke6
{[%clk 0:00:05]} 39. Kd2 {[%clk 0:00:04.1]} 39... Kd6 {[%clk 0:00:03]} 40. Bxd3
{[%clk 0:00:04.1]} 40... Kc5 {[%clk 0:00:03.7]} 41. Be2 {[%clk 0:00:04.2]} 41...
Rd6+ {[%clk 0:00:03.2]} 42. Ke1 {[%clk 0:00:04.7]} 42... Kb6 {[%clk 0:00:03.5]}
43. Rd1 {[%clk 0:00:04.7]} 43... Rxd1+ {[%clk 0:00:03.3]} 44. Kxd1 {[%clk
0:00:05.6]} 44... Kc5 {[%clk 0:00:04.2]} 45. Kc2 {[%clk 0:00:06]} 45... f6
{[%clk 0:00:03]} 46. Kc3 {[%clk 0:00:06.3]} 46... Nf7 {[%clk 0:00:02.4]} 47. Kd3
{[%clk 0:00:03.4]} 47... Nd6 {[%clk 0:00:02.9]} 48. Kc2 {[%clk 0:00:02.4]} 48...
Ne4 {[%clk 0:00:03.2]} 49. g4 {[%clk 0:00:02.1]} 49... Nd6 {[%clk 0:00:03.6]}
50. Kc3 {[%clk 0:00:02.1]} 50... Ne4+ {[%clk 0:00:03]} 51. Kc2 {[%clk
0:00:02.6]} 51... Nd6 {[%clk 0:00:03.3]} 52. Kc3 {[%clk 0:00:03.2]} 52... Ne4+
{[%clk 0:00:03.1]} 53. Kc2 {[%clk 0:00:03.8]} 1/2-1/2

[Event "Early-Titled-Tuesday-Blitz-July-09-2024"]
[Site "Chess.com"]
[Date "2024.07.09"]
[Round "9"]
[White "Knightmare1014"]
[Black "AlphaPerseii"]
[Result "0-1"]
[WhiteElo "2248"]
[BlackElo "2429"]
[TimeControl "180+1"]
[EndTime "9:46:26 PDT"]
[Termination "AlphaPerseii won by checkmate"]

1. e4 {[%clk 0:03:00.9]} 1... c5 {[%clk 0:02:55.4]} 2. Nf3 {[%clk 0:03:00.5]}
2... Nc6 {[%clk 0:02:55.1]} 3. d4 {[%clk 0:03:00.3]} 3... cxd4 {[%clk 0:02:56]}
4. Nxd4 {[%clk 0:03:00.6]} 4... Nf6 {[%clk 0:02:56.7]} 5. Nc3 {[%clk 0:02:59.2]}
5... e5 {[%clk 0:02:57.3]} 6. Ndb5 {[%clk 0:02:58.8]} 6... d6 {[%clk 0:02:57.9]}
7. Bg5 {[%clk 0:02:58.2]} 7... a6 {[%clk 0:02:58.5]} 8. Na3 {[%clk 0:02:58.3]}
8... b5 {[%clk 0:02:59.2]} 9. Nd5 {[%clk 0:02:58.5]} 9... Be7 {[%clk 0:02:59.6]}
10. Bxf6 {[%clk 0:02:58.9]} 10... Bxf6 {[%clk 0:03:00.5]} 11. c3 {[%clk
0:02:59.2]} 11... Ne7 {[%clk 0:03:00.8]} 12. Nc2 {[%clk 0:02:55.2]} 12... Nxd5
{[%clk 0:02:58.4]} 13. Qxd5 {[%clk 0:02:54.8]} 13... Ra7 {[%clk 0:02:49.6]} 14.
Qd1 {[%clk 0:02:51.9]} 14... Bb7 {[%clk 0:02:44]} 15. Bd3 {[%clk 0:02:50.1]}
15... d5 {[%clk 0:02:40.1]} 16. Qe2 {[%clk 0:02:45.1]} 16... O-O {[%clk
0:02:21.7]} 17. O-O {[%clk 0:02:42.6]} 17... dxe4 {[%clk 0:02:07.9]} 18. Bxe4
{[%clk 0:02:42.2]} 18... Bxe4 {[%clk 0:02:08.8]} 19. Qxe4 {[%clk 0:02:42.6]}
19... Rd7 {[%clk 0:02:09.5]} 20. a4 {[%clk 0:02:35]} 20... Rd2 {[%clk
0:01:49.3]} 21. axb5 {[%clk 0:02:32.9]} 21... axb5 {[%clk 0:01:50.2]} 22. h3
{[%clk 0:02:24.8]} 22... g6 {[%clk 0:01:45.2]} 23. b4 {[%clk 0:01:54.2]} 23...
Qd7 {[%clk 0:01:30]} 24. Ne3 {[%clk 0:01:34.9]} 24... Rc8 {[%clk 0:01:15.2]} 25.
Ra8 {[%clk 0:01:29.9]} 25... Kg7 {[%clk 0:01:06.9]} 26. Rxc8 {[%clk 0:01:27.3]}
26... Qxc8 {[%clk 0:01:07.8]} 27. c4 {[%clk 0:01:22.9]} 27... Rd4 {[%clk
0:01:00.8]} 28. Qc2 {[%clk 0:00:57.6]} 28... bxc4 {[%clk 0:01:00.5]} 29. Rc1
{[%clk 0:00:57.5]} 29... Bg5 {[%clk 0:00:55.2]} 30. b5 {[%clk 0:00:39.7]} 30...
Qb7 {[%clk 0:00:51]} 31. Rb1 {[%clk 0:00:37]} 31... Bxe3 {[%clk 0:00:24.7]} 32.
fxe3 {[%clk 0:00:37]} 32... Re4 {[%clk 0:00:25.2]} 33. b6 {[%clk 0:00:37.1]}
33... h5 {[%clk 0:00:08.7]} 34. Qc3 {[%clk 0:00:31.1]} 34... h4 {[%clk
0:00:07.2]} 35. Rb5 {[%clk 0:00:29.9]} 35... Kf6 {[%clk 0:00:06.7]} 36. Rb2
{[%clk 0:00:23.6]} 36... Ke6 {[%clk 0:00:05.7]} 37. Qb4 {[%clk 0:00:20.7]} 37...
Rxe3 {[%clk 0:00:04.4]} 38. Qxc4+ {[%clk 0:00:20.5]} 38... Kf5 {[%clk
0:00:03.4]} 39. Qc2+ {[%clk 0:00:18.4]} 39... Ke6 {[%clk 0:00:02.5]} 40. Qc7
{[%clk 0:00:17.9]} 40... Qxc7 {[%clk 0:00:02]} 41. bxc7 {[%clk 0:00:18]} 41...
Rc3 {[%clk 0:00:02.9]} 42. Rb6+ {[%clk 0:00:16.6]} 42... Kd7 {[%clk 0:00:03.3]}
43. Rf6 {[%clk 0:00:16.8]} 43... Ke7 {[%clk 0:00:02.9]} 44. Rf3 {[%clk 0:00:13]}
44... Rxc7 {[%clk 0:00:03.1]} 45. Re3 {[%clk 0:00:12.5]} 45... Ke6 {[%clk
0:00:03.6]} 46. Re4 {[%clk 0:00:12.9]} 46... g5 {[%clk 0:00:02.5]} 47. Rg4
{[%clk 0:00:12.6]} 47... Kf5 {[%clk 0:00:02.5]} 48. Rc4 {[%clk 0:00:12.1]} 48...
Rxc4 {[%clk 0:00:02.7]} 49. Kh2 {[%clk 0:00:09.9]} 49... Rc2 {[%clk 0:00:03.4]}
50. Kh1 {[%clk 0:00:10.2]} 50... Kf4 {[%clk 0:00:03.5]} 51. Kh2 {[%clk
0:00:10.7]} 51... Ke3 {[%clk 0:00:03.8]} 52. Kh1 {[%clk 0:00:10.5]} 52... Kf2
{[%clk 0:00:04.1]} 53. Kh2 {[%clk 0:00:10.6]} 53... e4 {[%clk 0:00:04.8]} 54. g4
{[%clk 0:00:10.9]} 54... hxg3+ {[%clk 0:00:04.4]} 55. Kh1 {[%clk 0:00:11.4]}
55... Rc1# {[%clk 0:00:05.3]} 0-1

[Event "Early-Titled-Tuesday-Blitz-July-09-2024"]
[Site "Chess.com"]
[Date "2024.07.09"]
[Round "9"]
[White "michaelskie11"]
[Black "GMMikhailKazakov"]
[Result "0-1"]
[WhiteElo "2397"]
[BlackElo "2513"]
[TimeControl "180+1"]
[EndTime "9:46:28 PDT"]
[Termination "GMMikhailKazakov won by resignation"]

1. d4 {[%clk 0:03:00.9]} 1... Nf6 {[%clk 0:02:55.6]} 2. Nc3 {[%clk 0:03:00.6]}
2... e6 {[%clk 0:02:55.4]} 3. Bf4 {[%clk 0:02:58.3]} 3... d5 {[%clk 0:02:54.7]}
4. e3 {[%clk 0:02:58.4]} 4... Bd6 {[%clk 0:02:53.2]} 5. Bg3 {[%clk 0:02:57.8]}
5... O-O {[%clk 0:02:52.9]} 6. Nf3 {[%clk 0:02:58.2]} 6... c5 {[%clk 0:02:52.3]}
7. dxc5 {[%clk 0:02:57.1]} 7... Bxc5 {[%clk 0:02:50.8]} 8. Bd3 {[%clk
0:02:57.1]} 8... Nc6 {[%clk 0:02:46.2]} 9. O-O {[%clk 0:02:54.4]} 9... Bd6
{[%clk 0:02:44.6]} 10. e4 {[%clk 0:02:52.7]} 10... Bxg3 {[%clk 0:02:38.5]} 11.
hxg3 {[%clk 0:02:53.6]} 11... d4 {[%clk 0:02:38.4]} 12. Ne2 {[%clk 0:02:49.8]}
12... e5 {[%clk 0:02:38.6]} 13. c3 {[%clk 0:02:50]} 13... dxc3 {[%clk
0:02:36.8]} 14. Nxc3 {[%clk 0:02:50.9]} 14... Bg4 {[%clk 0:02:34.6]} 15. Qe2
{[%clk 0:02:40.6]} 15... Nd4 {[%clk 0:02:33.4]} 16. Qe3 {[%clk 0:02:40.9]} 16...
Re8 {[%clk 0:02:17.6]} 17. Rad1 {[%clk 0:02:02.8]} 17... Qb6 {[%clk 0:01:39.7]}
18. Rd2 {[%clk 0:01:56.6]} 18... Bd7 {[%clk 0:01:24.4]} 19. Bc4 {[%clk
0:01:46.5]} 19... Ng4 {[%clk 0:01:17.4]} 20. Qd3 {[%clk 0:01:28.3]} 20... Qh6
{[%clk 0:01:07.1]} 21. Nh4 {[%clk 0:00:59.5]} 21... g5 {[%clk 0:01:03.6]} 22. f3
{[%clk 0:00:59]} 22... Nf6 {[%clk 0:00:55.9]} 23. Qe3 {[%clk 0:00:48.9]} 23...
Kg7 {[%clk 0:00:47]} 24. Nf5+ {[%clk 0:00:40.5]} 24... Nxf5 {[%clk 0:00:41.9]}
25. exf5 {[%clk 0:00:41.4]} 25... Bc6 {[%clk 0:00:42]} 26. Rd6 {[%clk
0:00:38.2]} 26... Rad8 {[%clk 0:00:36.7]} 27. Rxd8 {[%clk 0:00:32.5]} 27... Rxd8
{[%clk 0:00:34.4]} 28. Qxe5 {[%clk 0:00:33.2]} 28... g4 {[%clk 0:00:23.3]} 29.
Qe7 {[%clk 0:00:17.1]} 29... Rd7 {[%clk 0:00:18.9]} 30. Qe5 {[%clk 0:00:16.7]}
30... gxf3 {[%clk 0:00:16.6]} 31. gxf3 {[%clk 0:00:16]} 31... Rd2 {[%clk
0:00:15.6]} 32. Ne2 {[%clk 0:00:09.2]} 32... Qh3 {[%clk 0:00:09.7]} 33. g4
{[%clk 0:00:08.8]} 33... h6 {[%clk 0:00:08.9]} 34. Qg3 {[%clk 0:00:08.7]} 34...
Qxg3+ {[%clk 0:00:08.2]} 35. Nxg3 {[%clk 0:00:08.6]} 35... Rxb2 {[%clk 0:00:09]}
36. Re1 {[%clk 0:00:06.9]} 36... Kf8 {[%clk 0:00:08.3]} 37. Re3 {[%clk
0:00:05.6]} 37... b5 {[%clk 0:00:08.1]} 38. Bb3 {[%clk 0:00:05.9]} 38... a5
{[%clk 0:00:08.5]} 39. Ne4 {[%clk 0:00:04.6]} 39... Bxe4 {[%clk 0:00:06.7]} 40.
fxe4 {[%clk 0:00:05.5]} 40... a4 {[%clk 0:00:06.2]} 41. Bd5 {[%clk 0:00:05.3]}
41... Nxg4 {[%clk 0:00:06.3]} 42. Rc3 {[%clk 0:00:05.3]} 42... b4 {[%clk
0:00:04.3]} 43. Rc8+ {[%clk 0:00:05.3]} 43... Ke7 {[%clk 0:00:04]} 44. Rc7+
{[%clk 0:00:05.6]} 44... Kd6 {[%clk 0:00:04.9]} 45. Rxf7 {[%clk 0:00:05.8]}
45... b3 {[%clk 0:00:04.3]} 46. axb3 {[%clk 0:00:05.7]} 46... a3 {[%clk
0:00:04.9]} 47. Ra7 {[%clk 0:00:06.1]} 47... a2 {[%clk 0:00:04.7]} 48. f6 {[%clk
0:00:04.1]} 48... Nxf6 {[%clk 0:00:03.7]} 49. Ra6+ {[%clk 0:00:03.9]} 49... Ke5
{[%clk 0:00:02.9]} 50. Re6+ {[%clk 0:00:04]} 50... Kd4 {[%clk 0:00:03.3]} 51.
Ra6 {[%clk 0:00:03.9]} 51... Rb1+ {[%clk 0:00:03.3]} 52. Kg2 {[%clk 0:00:04.6]}
52... a1=Q {[%clk 0:00:03.5]} 53. Rxa1 {[%clk 0:00:05.4]} 53... Rxa1 {[%clk
0:00:04.2]} 54. b4 {[%clk 0:00:06.3]} 54... Rb1 {[%clk 0:00:03.1]} 55. Kg3
{[%clk 0:00:05.4]} 55... Rb2 {[%clk 0:00:04]} 56. Kf4 {[%clk 0:00:05.9]} 56...
Nxd5+ {[%clk 0:00:04]} 57. exd5 {[%clk 0:00:05.5]} 57... Kxd5 {[%clk 0:00:04.9]}
58. b5 {[%clk 0:00:05.8]} 58... Rb4+ {[%clk 0:00:05.3]} 0-1

[Event "Early-Titled-Tuesday-Blitz-July-09-2024"]
[Site "Chess.com"]
[Date "2024.07.09"]
[Round "9"]
[White "carloseduar100"]
[Black "InitiatingASC"]
[Result "1/2-1/2"]
[WhiteElo "2268"]
[BlackElo "2419"]
[TimeControl "180+1"]
[EndTime "9:46:30 PDT"]
[Termination "Game drawn - insufficient material"]

1. d4 {[%clk 0:03:00.9]} 1... d5 {[%clk 0:02:59.6]} 2. c3 {[%clk 0:03:00.4]}
2... c5 {[%clk 0:02:56.8]} 3. dxc5 {[%clk 0:02:59.4]} 3... e6 {[%clk 0:02:55.8]}
4. b4 {[%clk 0:02:59.1]} 4... a5 {[%clk 0:02:54.8]} 5. a3 {[%clk 0:02:57.3]}
5... Nc6 {[%clk 0:02:54.7]} 6. Bb2 {[%clk 0:02:56.7]} 6... Nf6 {[%clk
0:02:50.6]} 7. Nf3 {[%clk 0:02:55.8]} 7... Ne4 {[%clk 0:02:49.8]} 8. Nbd2 {[%clk
0:02:53.6]} 8... Nxd2 {[%clk 0:02:39.3]} 9. Qxd2 {[%clk 0:02:53.1]} 9... b6
{[%clk 0:02:38.1]} 10. cxb6 {[%clk 0:02:51.4]} 10... Qxb6 {[%clk 0:02:37.5]} 11.
e3 {[%clk 0:02:47.2]} 11... axb4 {[%clk 0:02:22.2]} 12. axb4 {[%clk 0:02:45.9]}
12... Rxa1+ {[%clk 0:01:59.9]} 13. Bxa1 {[%clk 0:02:46.8]} 13... Nxb4 {[%clk
0:02:00.4]} 14. cxb4 {[%clk 0:02:36.5]} 14... Bxb4 {[%clk 0:02:00.5]} 15. Bc3
{[%clk 0:02:37.1]} 15... Bxc3 {[%clk 0:01:59.8]} 16. Qxc3 {[%clk 0:02:38]} 16...
Qb1+ {[%clk 0:01:58.9]} 17. Kd2 {[%clk 0:02:38.5]} 17... O-O {[%clk 0:01:58.4]}
18. Rg1 {[%clk 0:02:30.3]} 18... Bd7 {[%clk 0:01:52.6]} 19. Bd3 {[%clk 0:02:30]}
19... Qa2+ {[%clk 0:01:51.8]} 20. Qc2 {[%clk 0:02:27.9]} 20... Qa3 {[%clk
0:01:44.6]} 21. Rc1 {[%clk 0:02:19.8]} 21... Rb8 {[%clk 0:01:38.5]} 22. Ke1
{[%clk 0:02:14]} 22... g6 {[%clk 0:01:32.6]} 23. Kf1 {[%clk 0:02:03.5]} 23...
Rb2 {[%clk 0:01:27.5]} 24. Qd1 {[%clk 0:01:58]} 24... Ba4 {[%clk 0:01:14.6]} 25.
Bc2 {[%clk 0:01:51.5]} 25... Qa2 {[%clk 0:00:50.4]} 26. Bxa4 {[%clk 0:01:40.9]}
26... Rxf2+ {[%clk 0:00:50]} 27. Kg1 {[%clk 0:01:41.1]} 27... Rxg2+ {[%clk
0:00:48.8]} 28. Kh1 {[%clk 0:01:41.5]} 28... Rg4 {[%clk 0:00:43.8]} 29. Bc2
{[%clk 0:01:27.2]} 29... Qa3 {[%clk 0:00:37.5]} 30. Bd3 {[%clk 0:01:11]} 30...
Qb2 {[%clk 0:00:27.8]} 31. Be2 {[%clk 0:01:08.7]} 31... Re4 {[%clk 0:00:21.5]}
32. Rc2 {[%clk 0:00:49.7]} 32... Qa3 {[%clk 0:00:21.1]} 33. Kg2 {[%clk
0:00:35.8]} 33... Qxe3 {[%clk 0:00:20.8]} 34. h3 {[%clk 0:00:32.6]} 34... h5
{[%clk 0:00:16.8]} 35. Qa1 {[%clk 0:00:29.4]} 35... e5 {[%clk 0:00:14.5]} 36.
Qc3 {[%clk 0:00:24.1]} 36... Qxc3 {[%clk 0:00:13.2]} 37. Rxc3 {[%clk 0:00:23]}
37... Rxe2+ {[%clk 0:00:14]} 38. Kg3 {[%clk 0:00:22.4]} 38... d4 {[%clk
0:00:13.3]} 39. Rc8+ {[%clk 0:00:21]} 39... Kg7 {[%clk 0:00:12.8]} 40. Re8
{[%clk 0:00:21.2]} 40... Re3 {[%clk 0:00:13.2]} 41. Rxe5 {[%clk 0:00:17.9]}
41... Ra3 {[%clk 0:00:12.2]} 42. Kf4 {[%clk 0:00:16.5]} 42... d3 {[%clk
0:00:12.3]} 43. Rd5 {[%clk 0:00:16.8]} 43... Ra4+ {[%clk 0:00:10.8]} 44. Kg3
{[%clk 0:00:16.2]} 44... Ra3 {[%clk 0:00:11.2]} 45. Kf2 {[%clk 0:00:16]} 45...
Ra2+ {[%clk 0:00:08.8]} 46. Ke3 {[%clk 0:00:16.4]} 46... d2 {[%clk 0:00:07.1]}
47. Rxd2 {[%clk 0:00:15.6]} 47... Ra3+ {[%clk 0:00:07.3]} 48. Kf4 {[%clk
0:00:15.7]} 48... Ra4+ {[%clk 0:00:07.3]} 49. Rd4 {[%clk 0:00:15.6]} 49... Ra3
{[%clk 0:00:06.9]} 50. h4 {[%clk 0:00:15.1]} 50... Ra1 {[%clk 0:00:06.9]} 51.
Ng5 {[%clk 0:00:15.2]} 51... Rf1+ {[%clk 0:00:07.1]} 52. Kg3 {[%clk 0:00:15.3]}
52... Rg1+ {[%clk 0:00:07.2]} 53. Kf2 {[%clk 0:00:15.3]} 53... Rg4 {[%clk
0:00:06.2]} 54. Rxg4 {[%clk 0:00:14.3]} 54... hxg4 {[%clk 0:00:07.1]} 55. Kg3
{[%clk 0:00:14.8]} 55... f6 {[%clk 0:00:06.9]} 56. Ne6+ {[%clk 0:00:12.3]} 56...
Kf7 {[%clk 0:00:06.9]} 57. Nf4 {[%clk 0:00:12.5]} 57... g5 {[%clk 0:00:06.2]}
58. hxg5 {[%clk 0:00:07.1]} 58... fxg5 {[%clk 0:00:06]} 59. Kxg4 {[%clk
0:00:07.7]} 59... gxf4 {[%clk 0:00:05.8]} 60. Kxf4 {[%clk 0:00:08.6]} 1/2-1/2